bitfinex-derivatives/quotes_SOLF0:USTF0_20241227
["timestamp","ask_amount","ask_price","bid_price","bid_amount"]
[1735302672711,8.4285401,190.68,190.62,2.626]
[1735302673908,8.4285401,190.7,190.63,8.4285401]
[1735302674108,8.4285401,190.72,190.65,8.4285401]
[1735302674307,8.4285401,190.72,190.66,3.0]
[1735302674808,8.4285401,190.72,190.67,2.6253]
[1735302675013,8.4285401,190.7,190.67,2.6253]
[1735302675208,8.4285401,190.7,190.66,3.0]
[1735302675408,3.0,190.75,190.66,3.0]
[1735302675609,8.4285401,190.72,190.66,3.0]
[1735302675804,8.4285401,190.72,190.68,2.625]
[1735302676110,8.4285401,190.72,190.66,3.0]
[1735302676310,8.4285401,190.72,190.69,2.6249]
[1735302681908,8.4285401,190.7,190.67,2.6252]
[1735302682114,8.4285401,190.7,190.62,4.7057]
[1735302682314,8.4285401,190.68,190.63,11.4285401]
[1735302682618,8.4285401,190.66,190.59,8.4285401]
[1735302682916,8.4285401,190.64,190.58,3.0]
[1735302683217,8.4285401,190.62,190.58,3.0]
[1735302685218,8.4285401,190.62,190.58,5.6264]
[1735302687121,8.4285401,190.62,190.58,2.6264]
[1735302687425,8.4285401,190.62,190.59,2.6264]
[1735302688020,8.4285401,190.64,190.6,2.6263]
[1735302688221,8.4285401,190.66,190.59,8.4285401]
[1735302688421,10.0959401,190.68,190.61,8.4285401]
[1735302688621,10.0959401,190.68,190.63,2.6258]
[1735302690420,3.2143,190.73,190.63,3.0]
[1735302690618,8.4285401,190.69,190.65,2.6255]
[1735302693424,1.5625,190.73,190.65,8.4285401]
[1735302693627,8.4285401,190.75,190.69,8.4285401]
[1735302693821,8.4285401,190.75,190.69,11.4285401]
[1735302694225,8.4285401,190.73,190.69,3.0]
[1735302694525,8.4285401,190.73,190.7,2.6249]
[1735302697619,8.4285401,190.73,190.71,2.6247]
[1735302697824,8.4285401,190.75,190.69,3.0]
[1735302698014,8.4285401,190.75,190.69,11.4285401]
[1735302698214,9.9770401,190.77,190.74,2.6243]
[1735302698426,8.4285401,190.77,190.74,2.6243]
[1735302700427,8.4285401,190.79,190.75,2.6241]
[1735302700628,1.6275,190.82,190.74,3.0]
[1735302700831,8.4285401,190.8,190.74,3.0]
[1735302702322,8.4285401,190.82,190.74,11.4285401]
[1735302702524,1.38979833,190.86,190.78,8.4285401]
[1735302702525,8.4285401,190.86,190.78,8.4285401]
[1735302702726,8.4285401,190.86,190.79,3.0]
[1735302704133,8.4285401,190.86,190.81,2.6234]
[1735302708332,8.4285401,190.84,190.75,4.8138]
[1735302708538,8.4285401,190.84,190.77,8.4285401]
[1735302709538,1.6276,190.88,190.77,8.4285401]
[1735302709839,8.4285401,190.86,190.79,8.4285401]
[1735302710030,1.6276,190.88,190.83,2.6231]
[1735302710228,8.4285401,190.87,190.81,11.4285401]
[1735302710637,8.4285401,190.89,190.81,11.4285401]
[1735302710841,8.4285401,190.91,190.85,8.4285401]
[1735302711137,8.4285401,190.91,190.87,2.6225]
[1735302712836,8.4285401,190.91,190.86,3.0]
[1735302713038,8.4285401,190.91,190.86,5.6227]
[1735302713439,8.4285401,190.91,190.86,3.0]
[1735302713843,8.4285401,190.89,190.86,3.0]
[1735302714239,11.0508401,190.89,190.86,3.0]
[1735302716741,8.4285401,190.87,190.81,5.6233]
[1735302716942,8.4285401,190.85,190.81,5.6233]
[1735302718040,8.4285401,190.85,190.81,3.0]
[1735302718252,2.6227,190.86,190.81,3.0]
[1735302718547,13.19881487,190.88,190.81,3.0]
[1735302718739,2.6226,190.87,190.81,3.0]
[1735302719244,13.19881487,190.88,190.81,3.0]
[1735302719440,2.6228,190.85,190.81,3.0]
[1735302719746,2.6228,190.85,190.79,2.6236]
[1735302720543,2.6227,190.86,190.78,3.0]
[1735302720741,2.6227,190.86,190.8,2.6235]
[1735302723548,13.19881487,190.88,190.78,3.0]
[1735302723751,13.19881487,190.94,190.81,13.19881487]
[1735302724154,4.9986,190.96,190.91,2.6219]
[1735302724363,3.35,190.96,190.89,3.0]
[1735302725255,3.35,190.96,190.9,2.622]
[1735302725552,3.35,190.96,190.89,3.0]
[1735302725757,3.35,190.96,190.92,2.6219]
[1735302726149,3.35,190.96,190.89,3.0]
[1735302726349,13.19881487,190.94,190.85,3.1743]
[1735302726550,13.19881487,190.94,190.87,3.0]
[1735302726752,13.19881487,190.94,190.86,3.0]
[1735302727053,3.35,190.96,190.86,3.0]
[1735302727054,2.6215,190.95,190.88,2.6223]
[1735302727255,13.19881487,190.98,190.86,3.0]
[1735302727456,6.1279,191.01,190.86,3.0]
[1735302727655,13.19881487,190.99,190.86,3.0]
[1735302727856,2.6213,190.97,190.9,2.622]
[1735302728457,2.6213,190.97,190.86,3.0]
[1735302728659,2.6216,190.94,190.86,3.0]
[1735302728851,13.19881487,190.99,190.86,3.0]
[1735302729252,2.6213,190.96,190.86,3.0]
[1735302729949,13.19881487,190.99,190.87,13.19881487]
[1735302730452,2.6212,190.97,190.9,2.622]
[1735302730657,2.6212,190.97,190.91,3.0]
[1735302730861,13.19881487,190.99,190.91,3.0]
[1735302732356,2.6212,190.97,190.92,2.6218]
[1735302732660,16.32671487,191.01,190.91,3.0]
[1735302732961,2.621,190.98,190.94,2.6216]
[1735302733258,16.32671487,191.01,190.91,3.0]
[1735302733652,13.19881487,190.98,190.89,3.0]
[1735302734656,2.6215,190.95,190.91,2.622]
[1735302735161,2.6215,190.95,190.9,2.6221]
[1735302736062,16.32671487,191.01,190.89,3.0]
[1735302736661,2.621,190.99,190.89,3.0]
[1735302737460,2.621,190.99,190.93,2.6216]
[1735302737666,16.32671487,191.01,190.9,13.19881487]
[1735302738266,2.6209,190.99,190.93,2.6216]
[1735302738466,16.32671487,191.01,190.9,13.19881487]
[1735302738667,3.1279,191.01,190.9,13.19881487]
[1735302738970,3.1279,191.01,190.91,3.1878]
[1735302739159,3.1279,191.01,190.91,4.776]
[1735302739363,3.1279,191.01,190.97,2.6212]
[1735302740461,3.1279,191.01,190.96,2.6213]
[1735302741563,5.7486,191.01,190.96,2.6213]
[1735302742270,14.18149775,191.01,190.96,2.6213]
[1735302744362,11.56079775,191.01,190.96,2.6213]
[1735302744557,11.56079775,191.01,190.95,3.0]
[1735302745565,58.0764213,191.12,190.95,3.0]
[1735302745566,2.621,190.99,190.95,3.0]
[1735302747574,8.43289775,190.97,190.87,4.829]
[1735302747868,8.43289775,190.95,190.88,3.0]
[1735302748069,8.43289775,190.97,190.89,8.43289775]
[1735302748269,8.43289775,190.97,190.91,8.43289775]
[1735302748467,8.43289775,190.99,190.91,8.43289775]
[1735302748668,8.43289775,191.01,190.94,2.6215]
[1735302748869,8.43289775,191.01,190.93,11.43289775]
[1735302749575,4.7368,191.06,190.96,2.6213]
[1735302749576,2.6205,191.03,190.96,2.6213]
[1735302749876,2.6205,191.03,190.95,8.43289775]
[1735302749877,8.43289775,191.05,190.97,8.43289775]
[1735302750075,8.43289775,191.08,191.01,11.05339775]
[1735302750273,8.43289775,191.1,191.03,8.43289775]
[1735302750575,8.43289775,191.1,191.04,3.0]
[1735302750776,8.43289775,191.1,191.04,5.6201]
[1735302751275,8.43289775,191.12,191.05,8.43289775]
[1735302751472,11.05199775,191.12,191.05,11.05279775]
[1735302752275,11.05199775,191.12,191.05,2.6199]
[1735302752276,2.6191,191.12,191.05,2.6199]
[1735302752575,3.3002,191.13,191.05,2.6199]
[1735302752779,2.6193,191.11,191.05,2.6199]
[1735302753377,2.6195,191.09,191.03,15.78179722]
[1735302753576,2.6195,191.09,191.04,3.0]
[1735302754081,2.6194,191.11,191.04,5.6202]
[1735302754788,2.6194,191.11,191.05,2.62]
[1735302755891,2.6194,191.1,191.04,5.6202]
[1735302756092,13.16149722,191.12,191.03,3.0]
[1735302756292,6.3002,191.13,191.03,3.0]
[1735302756591,13.16149722,191.1,191.03,3.0]
[1735302756792,2.6199,191.07,191.03,3.0]
[1735302757093,3.3002,191.13,191.03,3.0]
[1735302757499,2.6192,191.12,191.06,2.6198]
[1735302757796,3.3002,191.13,191.03,16.16149722]
[1735302758492,1.6532,191.15,191.03,16.16149722]
[1735302758691,13.16149722,191.2,191.06,13.16149722]
[1735302758893,13.16149722,191.2,191.09,13.16149722]
[1735302759197,13.16149722,191.2,191.1,3.0]
[1735302759897,13.16149722,191.2,191.12,2.6191]
[1735302760103,13.16149722,191.2,191.1,3.0]
[1735302760392,13.16149722,191.2,191.09,13.16149722]
[1735302760393,13.16149722,191.2,191.11,3.0]
[1735302760596,13.16149722,191.19,191.11,3.0]
[1735302761096,2.6186,191.16,191.11,3.0]
[1735302761794,13.16149722,191.19,191.11,3.0]
[1735302763398,41.18876404,191.21,191.11,3.0]
[1735302764498,2.6181,191.2,191.14,2.6187]
[1735302765998,41.18876404,191.21,191.14,2.6187]
[1735302766195,2.6182,191.19,191.14,2.6187]
[1735302766891,41.18876404,191.21,191.11,3.0]
[1735302768402,2.6185,191.17,191.11,5.6192]
[1735302768702,2.6185,191.17,191.11,3.0]
[1735302770297,2.6182,191.19,191.13,2.6188]
[1735302770499,41.18876404,191.21,191.11,3.0]
[1735302770500,3.128,191.21,191.11,3.0]
[1735302770798,3.128,191.21,191.12,13.16149722]
[1735302771105,13.16149722,191.25,191.12,13.16149722]
[1735302772000,4.7919,191.29,191.15,13.16149722]
[1735302772201,2.6169,191.28,191.22,2.6177]
[1735302772400,2.6169,191.28,191.22,5.6177]
[1735302772601,3.1987,191.29,191.22,3.0]
[1735302772803,3.1987,191.29,191.22,5.6177]
[1735302773105,3.1987,191.29,191.22,3.0]
[1735302774096,13.16149722,191.32,191.22,3.0]
[1735302774599,2.6166,191.31,191.25,2.6173]
[1735302774805,13.16149722,191.32,191.22,3.0]
[1735302776702,13.16149722,191.32,191.22,5.6177]
[1735302777600,2.617,191.28,191.22,5.6177]
[1735302777907,13.16149722,191.32,191.22,5.6177]
[1735302778301,2.6171,191.27,191.22,5.6177]
[1735302778506,2.6171,191.27,191.22,2.6177]
[1735302779404,1.5636,191.33,191.21,3.0]
[1735302779405,13.16149722,191.29,191.21,3.0]
[1735302779598,3.155,191.28,191.21,3.0]
[1735302779794,13.16149722,191.26,191.18,3.0]
[1735302779996,13.16149722,191.26,191.17,3.0]
[1735302780400,2.6175,191.25,191.19,2.6181]
[1735302780598,13.16149722,191.26,191.17,3.0]
[1735302781411,2.6176,191.23,191.18,2.6183]
[1735302781908,2.6176,191.23,191.17,3.0]
[1735302781909,13.16149722,191.26,191.17,3.0]
[1735302782097,13.16149722,191.23,191.13,3.0]
[1735302782505,13.16149722,191.2,191.09,1.84998413]
[1735302782696,13.16149722,191.2,191.09,3.0]
[1735302782896,3.3089,191.19,191.09,3.0]
[1735302783307,3.3089,191.19,191.09,5.6194]
[1735302783497,13.16149722,191.17,191.03,17.90239722]
[1735302783699,13.16149722,191.14,191.04,3.06]
[1735302783901,2.6193,191.11,191.05,2.6201]
[1735302784303,2.6193,191.11,191.04,3.06]
[1735302784804,2.6195,191.1,191.04,3.06]
[1735302785006,13.16149722,191.14,191.04,3.06]
[1735302785407,13.16149722,191.11,191.01,3.06]
[1735302785598,4.6997,191.1,191.01,3.06]
[1735302786404,2.6199,191.07,191.01,3.06]
[1735302786605,4.6997,191.1,191.01,3.06]
[1735302787012,7.3192,191.1,191.03,2.6202]
[1735302787207,2.6195,191.1,191.03,2.6202]
[1735302787503,13.16149722,191.09,191.01,3.06]
[1735302787704,2.6198,191.07,191.01,5.6806]
[1735302788306,16.44809722,191.09,191.01,3.06]
[1735302788503,16.44809722,191.09,191.0,3.06]
[1735302789711,3.2866,191.09,191.0,3.06]
[1735302790909,3.2866,191.09,191.01,2.6205]
[1735302791107,16.44809722,191.09,191.0,3.06]
[1735302791307,16.44809722,191.09,190.99,5.6808]
[1735302791509,16.44809722,191.09,190.99,3.06]
[1735302792010,2.62,191.06,190.98,3.06]
[1735302792909,1.529,191.08,190.98,3.06]
[1735302794011,2.6202,191.05,190.98,5.6809]
[1735302794206,2.6202,191.05,190.98,3.06]
[1735302794411,1.529,191.08,190.98,3.06]
[1735302796007,2.6199,191.06,191.0,2.6207]
[1735302796510,5.9062,191.09,190.98,3.06]
[1735302797113,3.2866,191.09,191.0,13.16149722]
[1735302797318,2.6194,191.11,191.0,13.16149722]
[1735302797614,2.6194,191.1,191.0,13.16149722]
[1735302798317,1.676,191.13,191.0,13.16149722]
[1735302799410,4.295,191.13,191.0,13.16149722]
[1735302799611,4.295,191.13,191.01,3.1594]
[1735302801614,4.295,191.13,191.06,2.6199]
[1735302802113,2.6188,191.14,191.05,3.06]
[1735302802308,17.93339722,191.18,191.05,3.06]
[1735302803914,2.6189,191.14,191.08,2.6195]
[1735302804115,17.93339722,191.18,191.05,3.06]
[1735302805520,2.6193,191.11,191.05,5.6801]
[1735302806612,2.6191,191.12,191.06,2.6199]
[1735302807118,13.16149722,191.15,191.05,3.06]
[1735302807319,17.93339722,191.18,191.05,3.06]
[1735302807915,2.6187,191.16,191.09,2.6194]
[1735302808220,2.6187,191.16,191.05,3.06]
[1735302808619,2.6187,191.16,191.09,2.6194]
[1735302809120,2.6187,191.15,191.09,2.6194]
[1735302809515,2.6187,191.15,191.1,2.6193]
[1735302810719,17.93339722,191.18,191.1,2.6193]
[1735302810922,2.6186,191.16,191.1,2.6193]
[1735302813224,17.93339722,191.18,191.05,3.06]
[1735302813526,13.16149722,191.22,191.09,13.16149722]
[1735302813826,13.16149722,191.22,191.1,3.04]
[1735302814325,2.6181,191.2,191.1,3.04]
[1735302814826,2.6182,191.19,191.13,2.619]
[1735302815124,13.16149722,191.22,191.13,2.619]
[1735302815331,13.16149722,191.22,191.11,3.04]
[1735302815626,2.6184,191.18,191.11,3.04]
[1735302815822,13.16149722,191.22,191.11,3.04]
[1735302816827,2.6181,191.2,191.11,3.04]
[1735302817022,13.16149722,191.22,191.11,3.04]
[1735302817424,2.6184,191.18,191.13,2.6189]
[1735302817727,13.16149722,191.19,191.08,1.5711]
[1735302817923,13.16149722,191.19,191.08,4.6111]
[1735302818622,2.6189,191.14,191.09,2.6195]
[1735302818827,13.16149722,191.16,191.08,3.04]
[1735302819325,16.20149722,191.2,191.02,3.3003]
[1735302819524,13.16149722,191.13,191.02,3.3003]
[1735302819728,2.6197,191.08,191.03,2.6204]
[1735302820523,13.16149722,191.1,191.0,2.6207]
[1735302820723,13.16149722,191.07,190.97,7.7789]
[1735302820928,13.16149722,191.07,190.96,124.79976625]
[1735302820929,2.6204,191.03,190.96,5.6612]
[1735302821226,2.6204,191.03,190.96,3.04]
[1735302821428,13.16149722,191.04,190.95,2.6214]
[1735302821927,13.16149722,191.04,190.94,3.04]
[1735302821928,4.3037,191.03,190.96,2.6213]
[1735302823020,2.6206,191.02,190.96,2.6213]
[1735302823228,1.6832,191.03,190.91,13.16149722]
[1735302823430,13.16149722,191.01,190.94,2.6216]
[1735302824522,13.16149722,191.01,190.93,2.6217]
[1735302824727,13.16149722,191.01,190.92,3.04]
[1735302825127,15.78229722,191.01,190.94,2.6216]
[1735302825523,13.16149722,191.01,190.94,2.6216]
[1735302826029,13.16149722,191.01,190.9,7.8042]
[1735302826423,13.16149722,191.01,190.96,2.6213]
[1735302827331,13.16149722,191.05,190.95,3.04]
[1735302827525,2.6204,191.03,190.95,3.04]
[1735302827737,13.16149722,191.05,190.96,2.6212]
[1735302827929,13.16149722,191.05,190.95,3.04]
[1735302828526,1.5543,191.06,190.95,3.04]
[1735302828731,3.1868,191.09,190.95,3.04]
[1735302828936,5.8064,191.09,191.02,2.6204]
[1735302829129,3.1868,191.09,191.02,2.6204]
[1735302831230,3.1868,191.09,191.04,2.6202]
[1735302831629,14.68539722,191.13,191.01,3.04]
[1735302831934,2.6191,191.12,191.01,3.04]
[1735302834032,2.6191,191.12,191.04,2.6202]
[1735302834236,2.6191,191.12,191.01,3.04]
[1735302834837,2.6191,191.12,191.05,2.62]
[1735302835627,2.6194,191.11,191.03,2.6202]
[1735302835832,13.16149722,191.1,191.0,3.04]
[1735302836439,2.6201,191.05,191.0,3.04]
[1735302837040,13.16149722,191.1,191.0,5.6606]
[1735302837239,13.16149722,191.1,191.0,3.04]
[1735302838343,2.6198,191.07,191.01,2.6205]
[1735302839246,2.6198,191.07,191.02,2.6204]
[1735302839448,13.16149722,191.1,191.0,3.04]
[1735302840550,2.6197,191.08,191.03,2.6204]
[1735302842645,13.16149722,191.1,191.01,2.6205]
[1735302843049,2.6198,191.07,191.01,2.6205]
[1735302844951,2.62,191.06,191.01,2.6205]
[1735302845555,2.6201,191.05,191.0,2.6207]
[1735302845755,13.16149722,191.07,190.98,3.04]
[1735302845951,1.5239,191.13,190.94,13.16149722]
[1735302845952,13.16149722,191.04,190.94,3.04]
[1735302846151,13.16149722,191.01,190.91,3.04]
[1735302846657,2.621,190.98,190.91,2.622]
[1735302847257,2.621,190.98,190.92,2.6218]
[1735302847458,2.6212,190.97,190.88,13.16149722]
[1735302847651,2.6212,190.97,190.88,16.20149722]
[1735302847856,2.6212,190.97,190.88,3.04]
[1735302848451,13.16149722,190.98,190.88,3.04]
[1735302848651,3.1655,191.03,190.88,13.16149722]
[1735302848952,16.32699722,191.03,190.91,13.16149722]
[1735302849453,16.32699722,191.03,190.98,2.621]
[1735302849655,1.6624,191.06,190.96,3.04]
[1735302849656,14.82389722,191.06,190.96,3.04]
[1735302850053,17.44379722,191.06,191.0,2.6207]
[1735302851960,2.6201,191.05,191.0,2.6207]
[1735302852859,2.6202,191.04,190.99,2.6209]
[1735302853059,14.82389722,191.06,190.94,13.16149722]
[1735302853263,14.82389722,191.06,190.95,3.04]
[1735302853456,14.82389722,191.06,190.94,3.04]
[1735302853658,13.16149722,191.03,190.94,3.04]
[1735302855161,13.16149722,191.03,190.87,1.6723]
[1735302855363,13.16149722,191.0,190.88,16.20149722]
[1735302855562,13.16149722,190.97,190.88,3.04]
[1735302855762,2.6216,190.95,190.88,5.6623]
[1735302855962,13.16149722,190.97,190.86,1.6053]
[1735302856266,13.16149722,190.94,190.85,70.118297]
[1735302857065,2.622,190.91,190.85,67.078297]
[1735302857267,13.16149722,190.91,190.83,7.22019572]
[1735302857764,13.16149722,190.91,190.81,3.04]
[1735302857765,2.6225,190.88,190.81,3.04]
[1735302858269,3.2633,190.9,190.81,3.04]
[1735302859463,3.2633,190.9,190.84,2.6229]
[1735302859860,1.6167,190.9,190.81,3.04]
[1735302860063,1.6167,190.9,190.83,2.623]
[1735302860266,1.6167,190.9,190.81,3.04]
[1735302861565,1.6167,190.9,190.84,2.6229]
[1735302862355,13.16149722,190.91,190.87,2.6225]
[1735302862561,2.6217,190.94,190.87,2.6225]
[1735302862562,13.16149722,190.94,190.87,3.04]
[1735302862761,1.5603,190.96,190.87,3.04]
[1735302863675,13.16149722,191.0,190.88,13.16149722]
[1735302863970,15.78229722,191.0,190.88,14.85029722]
[1735302864269,13.16149722,191.0,190.88,14.85029722]
[1735302865268,2.6209,190.99,190.92,2.6217]
[1735302865965,15.78229722,191.0,190.93,2.6217]
[1735302866366,13.16149722,191.0,190.92,3.04]
[1735302866868,13.16149722,191.0,190.95,2.6214]
[1735302867069,13.16149722,191.0,190.88,14.85029722]
[1735302867269,13.16149722,191.0,190.89,3.04]
[1735302867974,2.6212,190.97,190.91,2.6219]
[1735302869262,13.16149722,191.0,190.92,2.6219]
[1735302869467,13.16149722,191.0,190.89,3.04]
[1735302869763,15.78229722,191.0,190.92,2.6218]
[1735302869961,15.78229722,191.0,190.89,3.04]
[1735302870668,13.16149722,191.0,190.89,3.04]
[1735302870878,2.6209,190.99,190.93,2.6216]
[1735302871075,13.16149722,191.0,190.89,3.04]
[1735302871372,6.2548,191.03,190.89,3.04]
[1735302871764,13.16149722,191.01,190.89,3.04]
[1735302872268,2.6208,191.0,190.94,2.6216]
[1735302873268,2.6209,190.99,190.93,2.6217]
[1735302873469,13.16149722,190.98,190.89,3.04]
[1735302873879,2.621,190.99,190.94,2.6216]
[1735302874075,13.16149722,191.01,190.94,2.6216]
[1735302874267,13.16149722,191.01,190.89,3.04]
[1735302874774,13.16149722,191.01,190.95,2.6214]
[1735302875075,13.16149722,191.01,190.89,3.04]
[1735302875271,2.6211,190.98,190.92,2.6218]
[1735302877674,2.6211,190.98,190.89,3.04]
[1735302877675,2.6211,190.98,190.93,2.6217]
[1735302878078,13.16149722,191.01,190.93,2.6217]
[1735302878265,13.16149722,191.01,190.89,3.04]
[1735302878975,2.6208,191.0,190.92,2.6218]
[1735302879268,2.6208,191.0,190.89,3.04]
[1735302879875,2.6208,191.0,190.95,2.6214]
[1735302881467,13.16149722,191.01,190.96,2.6213]
[1735302882273,15.78229722,191.01,190.96,2.6213]
[1735302884976,2.621,190.99,190.94,5.7015]
[1735302885177,13.16149722,191.01,190.91,3.08]
[1735302885382,13.16149722,190.98,190.88,3.08]
[1735302885581,2.6219,190.92,190.86,3.08]
[1735302886578,3.2148,191.03,190.86,3.08]
[1735302886777,13.16149722,190.99,190.87,13.16149722]
[1735302887281,2.621,190.98,190.93,2.6216]
[1735302889277,2.6208,191.0,190.91,3.08]
[1735302889482,13.16149722,191.02,190.91,3.08]
[1735302889882,13.16149722,191.02,190.91,8.0591]
[1735302890481,13.16149722,191.05,190.93,13.16149722]
[1735302891777,2.6206,191.01,190.93,13.16149722]
[1735302891980,13.16149722,191.02,190.91,4.9791]
[1735302892174,2.6209,190.99,190.92,5.7017]
[1735302892375,13.16149722,191.02,190.92,3.08]
[1735302893482,2.6209,190.99,190.93,2.6217]
[1735302893875,13.16149722,191.02,190.92,3.08]
[1735302894083,2.621,190.99,190.92,5.7017]
[1735302894287,2.621,190.99,190.92,3.08]
[1735302895387,13.16149722,191.02,190.92,3.08]
[1735302895888,13.16149722,191.02,190.97,2.621]
[1735302896186,2.6204,191.03,190.92,3.08]
[1735302896384,2.6204,191.03,190.97,2.6211]
[1735302896976,2.6204,191.03,190.98,2.621]
[1735302897182,13.16149722,191.05,190.98,2.621]
[1735302897380,2.6202,191.04,190.98,2.621]
[1735302898185,2.6202,191.04,190.97,3.08]
[1735302898380,2.6202,191.04,190.99,2.6209]
[1735302898884,2.6202,191.04,190.98,2.621]
[1735302899084,2.6202,191.04,190.97,3.08]
[1735302900588,2.6202,191.04,190.99,2.6209]
[1735302904592,2.6202,191.04,190.98,2.621]
[1735302908286,8.43153864,191.03,190.98,2.621]
[1735302908593,8.43153864,191.03,190.97,3.08]
[1735302908794,2.6205,191.02,190.97,3.08]
[1735302909390,2.6205,191.02,190.97,5.7012]
[1735302911093,3.2986,191.08,190.97,3.08]
[1735302911295,3.2986,191.08,190.99,8.43153864]
[1735302911496,11.73013864,191.08,191.01,8.43153864]
[1735302911695,11.73013864,191.08,191.04,2.6201]
[1735302912594,8.43153864,191.12,191.05,8.43153864]
[1735302912896,30.21019663,191.14,191.07,8.43153864]
[1735302913289,30.21019663,191.14,191.1,2.6193]
[1735302913487,21.77865799,191.14,191.1,2.6193]
[1735302913890,11.05013864,191.16,191.09,8.43153864]
[1735302914298,4.5424023,191.17,191.08,2.6195]
[1735302914897,13.15697565,191.15,191.07,3.08]
[1735302915693,2.6188,191.14,191.07,3.08]
[1735302915894,17.69937795,191.17,191.07,3.08]
[1735302916899,17.69937795,191.17,191.09,2.6194]
[1735302917200,17.69937795,191.17,191.07,3.08]
[1735302917400,17.69937795,191.17,191.07,5.6998]
[1735302918600,2.6188,191.14,191.07,5.6998]
[1735302919294,2.6188,191.14,191.08,2.6197]
[1735302921305,2.6187,191.16,191.07,3.08]
[1735302921704,2.6187,191.15,191.09,2.6195]
[1735302924913,2.6187,191.15,191.1,2.6194]
[1735302925709,16.31177565,191.17,191.02,14.75047565]
[1735302925909,13.15697565,191.13,191.02,4.6735]
[1735302926117,2.6196,191.09,191.03,2.6203]
[1735302926411,13.15697565,191.1,190.99,14.70147565]
[1735302926606,13.15697565,191.1,191.0,3.08]
[1735302926814,2.6201,191.05,191.0,3.08]
[1735302927713,2.62,191.06,191.0,3.08]
[1735302927905,2.62,191.06,191.0,5.7007]
[1735302928518,13.15697565,191.07,191.01,2.6205]
[1735302928721,3.2037,191.09,191.0,3.08]
[1735302928912,13.15697565,191.13,191.0,3.08]
[1735302929112,7.3249,191.15,191.08,2.6196]
[1735302929314,7.3249,191.15,191.07,3.08]
[1735302930413,7.3249,191.15,191.09,2.6194]
[1735302931514,4.7061,191.15,191.1,2.6193]
[1735302931717,3.154,191.15,191.1,2.6193]
[1735302932822,3.154,191.15,191.07,3.08]
[1735302933314,2.6189,191.14,191.07,3.08]
[1735302933523,2.6189,191.14,191.08,2.6195]
[1735302934122,5.7727,191.15,191.09,2.6195]
[1735302935919,2.6192,191.12,191.07,3.08]
[1735302936316,13.15697565,191.13,191.07,3.08]
[1735302936716,13.15697565,191.13,191.03,2.6202]
[1735302937117,2.6195,191.1,191.05,2.6201]
[1735302937314,13.15697565,191.13,191.05,2.6201]
[1735302937514,1.5887,191.14,191.02,13.15697565]
[1735302937719,3.154,191.15,191.1,2.6193]
[1735302937919,3.154,191.15,191.01,1.5319]
[1735302938126,2.6191,191.12,191.02,3.08]
[1735302938320,3.154,191.15,191.1,2.6193]
[1735302940623,3.154,191.15,191.07,3.08]
[1735302942023,5.7727,191.15,191.07,3.08]
[1735302942325,13.15697565,191.16,191.07,3.08]
[1735302942622,2.6184,191.18,191.13,2.6189]
[1735302942823,13.15697565,191.2,191.13,2.6189]
[1735302943627,2.6183,191.19,191.13,2.6189]
[1735302943828,13.15697565,191.2,191.1,2.6193]
[1735302944018,13.15697565,191.2,191.07,6.227]
[1735302944222,2.6187,191.16,191.07,6.227]
[1735302945324,2.6182,191.19,191.07,6.227]
[1735302945524,2.6182,191.19,191.08,1.5437]
[1735302946527,2.6182,191.19,191.13,2.619]
[1735302946722,13.15697565,191.2,191.12,3.08]
[1735302947327,13.15697565,191.2,191.15,2.6186]
[1735302948429,15.77507565,191.2,191.15,2.6186]
[1735302948931,1.38698903,191.26,191.12,3.08]
[1735302949127,15.77477565,191.22,191.16,2.6184]